[Event "Championnat d'Europe de Blitz"]
[Date "2024.12.09"]
[White "Hamitevici, Vladimir"]
[Black "Navara, David"]
[WhiteElo "2423"]
[BlackElo "2665"]
[Round "9.20"]
[Result "1-0"]
[TimeControl "180+2"]

1. Nf3 {[%emt 00:00:02] [%clk 00:03:01]} c5 {[%emt 00:00:06] [%clk 00:02:59]} 2.
b3 {[%emt 00:00:06] [%clk 00:02:57]} d5 {[%emt 00:00:05] [%clk 00:02:56]} 3. e3
{[%emt 00:00:07] [%clk 00:02:53]} Nf6 {[%emt 00:00:07] [%clk 00:02:50]} 4. Bb2
{[%emt 00:00:02] [%clk 00:02:53]} g6 {[%emt 00:00:01] [%clk 00:02:51]} 5. g3
{[%emt 00:00:05] [%clk 00:02:50]} Bg7 {[%emt 00:00:03] [%clk 00:02:51]} 6. Bg2
{[%clk 00:02:51]} O-O {[%emt 00:00:06] [%clk 00:02:47]} 7. O-O {[%emt 00:00:02]
[%clk 00:02:52]} Qc7 {[%emt 00:00:13] [%clk 00:02:35]} 8. c4 {[%emt 00:00:11]
[%clk 00:02:43]} dxc4 {[%emt 00:00:04] [%clk 00:02:34]} 9. bxc4 {[%emt 00:00:01]
[%clk 00:02:43]} Nc6 {[%emt 00:00:07] [%clk 00:02:29]} 10. Qe2 {[%emt 00:00:13]
[%clk 00:02:32]} b6 {[%emt 00:00:33] [%clk 00:01:59]} 11. Nc3 {[%emt 00:00:09]
[%clk 00:02:25]} Bb7 {[%emt 00:00:01] [%clk 00:01:59]} 12. d3 {[%emt 00:00:12]
[%clk 00:02:15]} Rad8 {[%emt 00:00:07] [%clk 00:01:54]} 13. Ne1 {[%emt 00:00:06]
[%clk 00:02:10]} Nb4 {[%emt 00:00:29] [%clk 00:01:28]} 14. Bxb7 {[%emt 00:00:17]
[%clk 00:01:55]} Qxb7 {[%emt 00:00:01] [%clk 00:01:29]} 15. f4 {[%emt 00:00:08]
[%clk 00:01:49]} a6 {[%emt 00:00:01] [%clk 00:01:30]} 16. Rb1 {[%emt 00:00:07]
[%clk 00:01:44]} b5 {[%emt 00:00:07] [%clk 00:01:25]} 17. a3 {[%emt 00:00:25]
[%clk 00:01:21]} Nc6 {[%emt 00:00:02] [%clk 00:01:25]} 18. cxb5 {[%emt 00:00:02]
[%clk 00:01:22]} axb5 {[%emt 00:00:01] [%clk 00:01:25]} 19. Ba1 {[%emt 00:00:02]
[%clk 00:01:22]} b4 {[%emt 00:00:05] [%clk 00:01:22]} 20. axb4 {[%emt 00:00:20]
[%clk 00:01:03]} cxb4 {[%emt 00:00:08] [%clk 00:01:17]} 21. Nd1 {[%emt 00:00:07]
[%clk 00:00:58]} Qa6 {[%emt 00:00:37] [%clk 00:00:42]} 22. Rf2 {[%emt 00:00:05]
[%clk 00:00:54]} Nd5 {[%emt 00:00:07] [%clk 00:00:38]} 23. Bxg7 {[%emt 00:00:06]
[%clk 00:00:50]} Kxg7 {[%emt 00:00:01] [%clk 00:00:39]} 24. d4 {[%emt 00:00:14]
[%clk 00:00:39]} Qxe2 {[%emt 00:00:16] [%clk 00:00:24]} 25. Rxe2 {[%clk
00:00:40]} Rb8 {[%emt 00:00:01] [%clk 00:00:25]} 26. Nd3 {[%emt 00:00:06] [%clk
00:00:36]} f5 {[%emt 00:00:17] [%clk 00:00:10]} 27. Nc5 {[%emt 00:00:02] [%clk
00:00:37]} Rfc8 {[%emt 00:00:01] [%clk 00:00:11]} 28. Ra2 {[%emt 00:00:08] [%clk
00:00:30]} Ra8 {[%clk 00:00:12]} 29. Rba1 {[%emt 00:00:03] [%clk 00:00:29]} Rxa2
{[%emt 00:00:02] [%clk 00:00:12]} 30. Rxa2 {[%emt 00:00:01] [%clk 00:00:31]} Rb8
{[%emt 00:00:04] [%clk 00:00:10]} 31. Ra6 {[%emt 00:00:09] [%clk 00:00:22]} b3
{[%emt 00:00:06] [%clk 00:00:07]} 32. Rxc6 {[%emt 00:00:05] [%clk 00:00:20]} b2
{[%clk 00:00:08]} 33. Nxb2 {[%emt 00:00:05] [%clk 00:00:17]} Rxb2 {[%emt
00:00:02] [%clk 00:00:08]} 34. e4 {[%emt 00:00:06] [%clk 00:00:13]} Ne3 {[%emt
00:00:04] [%clk 00:00:06]} 35. Ne6+ {[%emt 00:00:09] [%clk 00:00:07]} Kh6 {[%emt
00:00:02] [%clk 00:00:05]} 36. Ng5 {[%emt 00:00:04] [%clk 00:00:05]} Rg2+ {[%emt
00:00:03] [%clk 00:00:04]} 37. Kh1 {[%clk 00:00:06]} Rd2 {[%emt 00:00:01] [%clk
00:00:05]} 38. Kg1 {[%emt 00:00:02] [%clk 00:00:06]} fxe4 {[%emt 00:00:03] [%clk
00:00:04]} 39. Nxe4 {[%emt 00:00:02] [%clk 00:00:06]} Rxd4 {[%clk 00:00:05]} 40.
Ng5 {[%emt 00:00:01] [%clk 00:00:07]} Rd1+ {[%emt 00:00:02] [%clk 00:00:05]} 41.
Kf2 {[%emt 00:00:02] [%clk 00:00:07]} Ng4+ {[%emt 00:00:01] [%clk 00:00:06]} 42.
Ke2 {[%emt 00:00:02] [%clk 00:00:07]} Rg1 {[%emt 00:00:02] [%clk 00:00:05]} 43.
Rc7 {[%emt 00:00:02] [%clk 00:00:08]} Nf6 {[%emt 00:00:03] [%clk 00:00:04]} 44.
Rxe7 {[%emt 00:00:05] [%clk 00:00:05]} Kh5 {[%emt 00:00:03] [%clk 00:00:03]} 45.
Nxh7 {[%emt 00:00:03] [%clk 00:00:04]} Nxh7 {[%emt 00:00:02] [%clk 00:00:03]}
46. Rxh7+ {[%clk 00:00:05]} Kg4 {[%clk 00:00:04]} 47. Rh4+ {[%emt 00:00:02]
[%clk 00:00:05]} Kf5 {[%emt 00:00:01] [%clk 00:00:06]} 48. Kf3 {[%emt 00:00:02]
[%clk 00:00:05]} Rf1+ {[%clk 00:00:07]} 49. Kg2 {[%clk 00:00:06]} Ra1 {[%emt
00:00:02] [%clk 00:00:08]} 50. Rh8 {[%clk 00:00:07]} Ra2+ {[%emt 00:00:02] [%clk
00:00:08]} 51. Kh3 {[%clk 00:00:08]} Rf2 {[%emt 00:00:01] [%clk 00:00:08]} 52.
Rf8+ {[%clk 00:00:09]} Ke6 {[%emt 00:00:01] [%clk 00:00:09]} 53. Ra8 {[%emt
00:00:02] [%clk 00:00:10]} Kf6 {[%clk 00:00:10]} 54. Ra5 {[%emt 00:00:01] [%clk
00:00:11]} Kg7 {[%emt 00:00:01] [%clk 00:00:10]} 55. Rg5 {[%emt 00:00:02] [%clk
00:00:11]} Kf6 {[%emt 00:00:01] [%clk 00:00:11]} 56. Rg4 {[%emt 00:00:01] [%clk
00:00:12]} Kf5 {[%emt 00:00:01] [%clk 00:00:12]} 57. Rg5+ {[%emt 00:00:01] [%clk
00:00:14]} Kf6 {[%clk 00:00:13]} 58. Ra5 {[%emt 00:00:01] [%clk 00:00:14]} Kg7
{[%emt 00:00:01] [%clk 00:00:14]} 59. Ra7+ {[%clk 00:00:15]} Kf6 {[%emt
00:00:01] [%clk 00:00:15]} 60. Ra8 {[%clk 00:00:16]} Kg7 {[%emt 00:00:02] [%clk
00:00:15]} 61. Ra7+ {[%emt 00:00:02] [%clk 00:00:16]} Kf6 {[%emt 00:00:01] [%clk
00:00:16]} 62. Rh7 {[%clk 00:00:17]} Rd2 {[%emt 00:00:03] [%clk 00:00:15]} 63.
Kg4 {[%emt 00:00:01] [%clk 00:00:18]} Rf2 {[%emt 00:00:02] [%clk 00:00:16]} 64.
h4 {[%clk 00:00:20]} Ra2 {[%emt 00:00:03] [%clk 00:00:16]} 65. h5 {[%clk
00:00:21]} gxh5+ {[%emt 00:00:01] [%clk 00:00:17]} 66. Rxh5 {[%emt 00:00:01]
[%clk 00:00:22]} Ra8 {[%emt 00:00:02] [%clk 00:00:18]} 67. Rh6+ {[%emt 00:00:01]
[%clk 00:00:23]} Kg7 {[%clk 00:00:19]} 68. Rb6 {[%clk 00:00:24]} Ra5 {[%emt
00:00:01] [%clk 00:00:20]} 69. Kh4 {[%emt 00:00:01] [%clk 00:00:25]} Rf5 {[%clk
00:00:21]} 70. Kg4 {[%emt 00:00:01] [%clk 00:00:26]} Ra5 {[%clk 00:00:22]} 71.
f5 {[%emt 00:00:01] [%clk 00:00:27]} Ra3 {[%emt 00:00:01] [%clk 00:00:23]} 72.
Kh4 {[%emt 00:00:01] [%clk 00:00:28]} Ra4+ {[%emt 00:00:03] [%clk 00:00:23]} 73.
g4 {[%emt 00:00:01] [%clk 00:00:28]} Ra7 {[%emt 00:00:01] [%clk 00:00:24]} 74.
Kh5 {[%emt 00:00:01] [%clk 00:00:29]} Rf7 {[%emt 00:00:02] [%clk 00:00:25]} 75.
Rg6+ {[%emt 00:00:02] [%clk 00:00:28]} Kh7 {[%emt 00:00:01] [%clk 00:00:27]} 76.
Kg5 {[%emt 00:00:01] [%clk 00:00:29]} Kh8 {[%emt 00:00:02] [%clk 00:00:27]} 77.
Rh6+ {[%clk 00:00:29]} Kg7 {[%emt 00:00:02] [%clk 00:00:27]} 78. Rb6 {[%emt
00:00:01] [%clk 00:00:30]} Rc7 {[%emt 00:00:01] [%clk 00:00:28]} 79. Kh5 {[%emt
00:00:02] [%clk 00:00:30]} Rc1 {[%emt 00:00:02] [%clk 00:00:28]} 80. Kg5 {[%emt
00:00:06] [%clk 00:00:28]} Rc7 {[%clk 00:00:29]} 81. Rg6+ {[%emt 00:00:03] [%clk
00:00:26]} Kf7 {[%emt 00:00:02] [%clk 00:00:29]} 82. Rh6 {[%emt 00:00:01] [%clk
00:00:27]} Kg7 {[%emt 00:00:01] [%clk 00:00:31]} 83. f6+ {[%clk 00:00:28]} Kg8
{[%clk 00:00:32]} 84. Kh5 {[%emt 00:00:08] [%clk 00:00:22]} Rc4 {[%emt 00:00:11]
[%clk 00:00:23]} 85. g5 {[%emt 00:00:04] [%clk 00:00:21]} Rc7 {[%emt 00:00:01]
[%clk 00:00:23]} 86. Kg6 {[%emt 00:00:07] [%clk 00:00:16]} Rg7+ {[%clk
00:00:25]} 87. Kf5 {[%clk 00:00:17]} Ra7 {[%emt 00:00:01] [%clk 00:00:26]} 88.
Rh2 {[%emt 00:00:01] [%clk 00:00:18]} Ra5+ {[%emt 00:00:08] [%clk 00:00:21]} 89.
Kg6 {[%emt 00:00:01] [%clk 00:00:19]} Ra7 {[%clk 00:00:22]} 90. f7+ {[%clk
00:00:20]} Rxf7 {[%emt 00:00:05] [%clk 00:00:20]} 91. Rh8+ {[%clk 00:00:21]}
Kxh8 {[%emt 00:00:02] [%clk 00:00:20]} 92. Kxf7 {[%clk 00:00:23]} 1-0

[Site "Europe Echecs"]

[Event "Championnat d'Europe de Blitz"]
[Date "2024.12.09"]
[White "Safarli, Eltaj"]
[Black "Schneider, Ilja"]
[WhiteElo "2610"]
[BlackElo "2414"]
[Round "9.21"]
[Result "1-0"]
[TimeControl "180+2"]

1. e4 {[%emt 00:00:02] [%clk 00:03:02]} e5 {[%emt 00:00:01] [%clk 00:03:04]} 2.
Nf3 {[%emt 00:00:05] [%clk 00:02:59]} Nc6 {[%emt 00:00:01] [%clk 00:03:05]} 3.
Bb5 {[%emt 00:00:05] [%clk 00:02:56]} a6 {[%emt 00:00:01] [%clk 00:03:06]} 4.
Ba4 {[%clk 00:02:57]} Bc5 {[%clk 00:03:07]} 5. c3 {[%emt 00:00:22] [%clk
00:02:38]} Nge7 {[%clk 00:03:08]} 6. d4 {[%clk 00:02:38]} exd4 {[%clk 00:03:09]}
7. cxd4 {[%emt 00:00:01] [%clk 00:02:39]} Bb4+ {[%emt 00:00:01] [%clk 00:03:10]}
8. Bd2 {[%emt 00:00:06] [%clk 00:02:35]} Bxd2+ {[%clk 00:03:11]} 9. Qxd2 {[%emt
00:00:01] [%clk 00:02:36]} d5 {[%clk 00:03:13]} 10. exd5 {[%emt 00:00:03] [%clk
00:02:34]} Qxd5 {[%emt 00:00:01] [%clk 00:03:14]} 11. Nc3 {[%emt 00:00:02] [%clk
00:02:34]} Qe6+ {[%clk 00:03:15]} 12. Qe3 {[%emt 00:00:01] [%clk 00:02:35]} O-O
{[%emt 00:00:01] [%clk 00:03:16]} 13. O-O {[%emt 00:00:07] [%clk 00:02:31]} Qd6
{[%emt 00:00:01] [%clk 00:03:17]} 14. Rad1 {[%emt 00:00:16] [%clk 00:02:16]} Bg4
{[%emt 00:00:13] [%clk 00:03:07]} 15. d5 {[%emt 00:00:06] [%clk 00:02:11]} Bxf3
{[%emt 00:00:36] [%clk 00:02:33]} 16. Qxf3 {[%clk 00:02:12]} Ne5 {[%emt
00:00:03] [%clk 00:02:32]} 17. Qe2 {[%emt 00:00:12] [%clk 00:02:02]} N7g6 {[%emt
00:00:39] [%clk 00:01:56]} 18. f4 {[%emt 00:00:18] [%clk 00:01:45]} Nd7 {[%emt
00:00:02] [%clk 00:01:56]} 19. Ne4 {[%emt 00:00:05] [%clk 00:01:42]} Qb6+ {[%emt
00:00:03] [%clk 00:01:55]} 20. Qf2 {[%clk 00:01:42]} Qxf2+ {[%emt 00:00:14]
[%clk 00:01:44]} 21. Rxf2 {[%emt 00:00:04] [%clk 00:01:43]} Nb6 {[%clk
00:01:44]} 22. Bb3 {[%emt 00:00:03] [%clk 00:01:41]} a5 {[%emt 00:00:16] [%clk
00:01:31]} 23. a4 {[%emt 00:00:03] [%clk 00:01:39]} Nd7 {[%emt 00:00:06] [%clk
00:01:27]} 24. Rc1 {[%emt 00:00:07] [%clk 00:01:35]} Rac8 {[%emt 00:00:04] [%clk
00:01:24]} 25. g3 {[%emt 00:00:33] [%clk 00:01:04]} Rfe8 {[%emt 00:00:19] [%clk
00:01:07]} 26. Ng5 {[%emt 00:00:02] [%clk 00:01:04]} h6 {[%emt 00:00:05] [%clk
00:01:05]} 27. Nf3 {[%clk 00:01:05]} b6 {[%emt 00:00:07] [%clk 00:00:59]} 28.
Bc2 {[%emt 00:00:24] [%clk 00:00:43]} Ne7 {[%emt 00:00:03] [%clk 00:00:58]} 29.
Rd1 {[%emt 00:00:19] [%clk 00:00:26]} Nc5 {[%emt 00:00:12] [%clk 00:00:48]} 30.
d6 {[%clk 00:00:27]} cxd6 {[%clk 00:00:49]} 31. Rxd6 {[%emt 00:00:01] [%clk
00:00:29]} Nc6 {[%emt 00:00:01] [%clk 00:00:50]} 32. Rfd2 {[%emt 00:00:05] [%clk
00:00:26]} Nb4 {[%emt 00:00:13] [%clk 00:00:40]} 33. Bf5 {[%emt 00:00:02] [%clk
00:00:26]} Rb8 {[%emt 00:00:02] [%clk 00:00:40]} 34. Ne5 {[%emt 00:00:04] [%clk
00:00:24]} Nxa4 {[%emt 00:00:22] [%clk 00:00:20]} 35. Bd7 {[%emt 00:00:01] [%clk
00:00:25]} Nc5 {[%emt 00:00:09] [%clk 00:00:13]} 36. Bxe8 {[%emt 00:00:01] [%clk
00:00:25]} Rxe8 {[%emt 00:00:03] [%clk 00:00:12]} 37. Rd8 {[%clk 00:00:27]} Kf8
{[%emt 00:00:02] [%clk 00:00:12]} 38. Rxe8+ {[%emt 00:00:11] [%clk 00:00:17]}
Kxe8 {[%emt 00:00:01] [%clk 00:00:14]} 39. Rd6 {[%emt 00:00:01] [%clk 00:00:18]}
Na4 {[%emt 00:00:04] [%clk 00:00:12]} 40. b3 {[%emt 00:00:04] [%clk 00:00:16]}
Nc5 {[%clk 00:00:14]} 41. Rxb6 {[%emt 00:00:03] [%clk 00:00:16]} Nxb3 {[%clk
00:00:15]} 42. Rb5 {[%emt 00:00:05] [%clk 00:00:12]} f6 {[%emt 00:00:06] [%clk
00:00:12]} 43. Nc4 {[%clk 00:00:13]} Nd4 {[%emt 00:00:05] [%clk 00:00:10]} 44.
Rb8+ {[%emt 00:00:04] [%clk 00:00:10]} Kf7 {[%emt 00:00:01] [%clk 00:00:11]} 45.
Nxa5 {[%emt 00:00:02] [%clk 00:00:10]} Nd5 {[%emt 00:00:06] [%clk 00:00:07]} 46.
Nc4 {[%emt 00:00:03] [%clk 00:00:09]} Kg6 {[%emt 00:00:03] [%clk 00:00:06]} 47.
Rd8 {[%emt 00:00:01] [%clk 00:00:10]} Ne2+ {[%clk 00:00:07]} 48. Kf2 {[%clk
00:00:11]} Nec3 {[%emt 00:00:01] [%clk 00:00:09]} 49. Rd7 {[%emt 00:00:03] [%clk
00:00:09]} h5 {[%emt 00:00:04] [%clk 00:00:07]} 50. Kf3 {[%clk 00:00:10]} Kh6
{[%emt 00:00:03] [%clk 00:00:07]} 51. Nd6 {[%clk 00:00:11]} Kg6 {[%emt 00:00:01]
[%clk 00:00:07]} 52. Ne8 {[%emt 00:00:02] [%clk 00:00:12]} Kf5 {[%emt 00:00:04]
[%clk 00:00:05]} 53. Nxg7+ {[%emt 00:00:02] [%clk 00:00:12]} Kg6 {[%clk
00:00:06]} 54. Ne6 {[%emt 00:00:02] [%clk 00:00:12]} Nb4 {[%emt 00:00:01] [%clk
00:00:07]} 55. Nf8+ {[%emt 00:00:03] [%clk 00:00:12]} Kf5 {[%emt 00:00:01] [%clk
00:00:08]} 56. h3 {[%clk 00:00:13]}

[Site "Europe Echecs"]

[Event "Championnat d'Europe de Blitz"]
[Date "2024.12.09"]
[White "Costachi, Mihnea"]
[Black "Pultinevicius, Paulius"]
[WhiteElo "2464"]
[BlackElo "2579"]
[Round "9.22"]
[Result "0-1"]
[TimeControl "180+2"]

1. d4 {[%clk 00:03:03]} Nf6 {[%emt 00:00:01] [%clk 00:03:04]} 2. c4 {[%emt
00:00:01] [%clk 00:03:04]} e6 {[%emt 00:00:01] [%clk 00:03:05]} 3. Nf3 {[%emt
00:00:01] [%clk 00:03:05]} d5 {[%emt 00:00:01] [%clk 00:03:06]} 4. Nc3 {[%emt
00:00:01] [%clk 00:03:06]} c6 {[%clk 00:03:07]} 5. cxd5 {[%emt 00:00:01] [%clk
00:03:06]} exd5 {[%emt 00:00:02] [%clk 00:03:08]} 6. Qc2 {[%clk 00:03:07]} g6
{[%emt 00:00:03] [%clk 00:03:07]} 7. h3 {[%emt 00:00:01] [%clk 00:03:07]} Bg7
{[%emt 00:00:02] [%clk 00:03:07]} 8. Bf4 {[%emt 00:00:05] [%clk 00:03:05]} O-O
{[%emt 00:00:03] [%clk 00:03:06]} 9. e3 {[%clk 00:03:05]} Bf5 {[%emt 00:00:11]
[%clk 00:02:58]} 10. Qb3 {[%emt 00:00:06] [%clk 00:03:01]} Qb6 {[%emt 00:00:06]
[%clk 00:02:54]} 11. g4 {[%emt 00:00:02] [%clk 00:03:00]} Be4 {[%emt 00:00:02]
[%clk 00:02:55]} 12. Bg2 {[%emt 00:00:10] [%clk 00:02:52]} Qa6 {[%emt 00:00:20]
[%clk 00:02:36]} 13. Bf1 {[%emt 00:00:13] [%clk 00:02:42]} Qa5 {[%emt 00:00:11]
[%clk 00:02:28]} 14. Bg2 {[%emt 00:00:06] [%clk 00:02:37]} Bd3 {[%emt 00:00:23]
[%clk 00:02:07]} 15. Ne5 {[%emt 00:00:07] [%clk 00:02:32]} Ba6 {[%emt 00:00:05]
[%clk 00:02:04]} 16. O-O-O {[%emt 00:00:29] [%clk 00:02:05]} Nfd7 {[%emt
00:00:03] [%clk 00:02:02]} 17. h4 {[%emt 00:00:10] [%clk 00:01:57]} Nxe5 {[%emt
00:00:11] [%clk 00:01:54]} 18. Bxe5 {[%emt 00:00:01] [%clk 00:01:57]} Bxe5
{[%emt 00:00:18] [%clk 00:01:38]} 19. dxe5 {[%emt 00:00:01] [%clk 00:01:58]} Nd7
{[%emt 00:00:01] [%clk 00:01:40]} 20. f4 {[%emt 00:00:10] [%clk 00:01:50]} Rae8
{[%emt 00:00:13] [%clk 00:01:28]} 21. h5 {[%emt 00:00:16] [%clk 00:01:36]} g5
{[%emt 00:00:02] [%clk 00:01:29]} 22. Kb1 {[%emt 00:00:08] [%clk 00:01:30]} Qb6
{[%emt 00:00:18] [%clk 00:01:12]} 23. Ne4 {[%emt 00:00:23] [%clk 00:01:09]} Be2
{[%emt 00:00:26] [%clk 00:00:48]} 24. Nxg5 {[%emt 00:00:36] [%clk 00:00:36]}
Qxb3 {[%emt 00:00:05] [%clk 00:00:45]} 25. axb3 {[%clk 00:00:36]} Bxd1 {[%emt
00:00:03] [%clk 00:00:45]} 26. Rxd1 {[%clk 00:00:37]} f6 {[%clk 00:00:46]} 27.
Nf3 {[%emt 00:00:28] [%clk 00:00:12]} fxe5 {[%emt 00:00:01] [%clk 00:00:47]} 28.
f5 {[%clk 00:00:13]} Nf6 {[%clk 00:00:49]} 29. Bh3 {[%emt 00:00:04] [%clk
00:00:11]} Kh8 {[%emt 00:00:04] [%clk 00:00:47]} 30. h6 {[%emt 00:00:04] [%clk
00:00:09]} Rg8 {[%emt 00:00:02] [%clk 00:00:47]} 31. g5 {[%emt 00:00:05] [%clk
00:00:06]} Ne4 {[%clk 00:00:48]} 32. Rg1 {[%clk 00:00:07]} Nf2 {[%emt 00:00:05]
[%clk 00:00:45]} 33. Bf1 {[%emt 00:00:05] [%clk 00:00:04]} Ref8 {[%emt 00:00:01]
[%clk 00:00:46]} 34. g6 {[%emt 00:00:02] [%clk 00:00:04]} hxg6 {[%emt 00:00:03]
[%clk 00:00:45]} 35. Nxe5 {[%emt 00:00:01] [%clk 00:00:04]} Rxf5 {[%emt
00:00:05] [%clk 00:00:43]} 36. Nxg6+ {[%emt 00:00:01] [%clk 00:00:05]} Kh7
{[%clk 00:00:43]} 37. Nh4 {[%emt 00:00:04] [%clk 00:00:03]} Rxg1 {[%emt
00:00:02] [%clk 00:00:44]} 0-1

[Site "Europe Echecs"]

[Event "Championnat d'Europe de Blitz"]
[Date "2024.12.09"]
[White "Vuckovic, Zarko"]
[Black "Alonso Rosell, Alvar"]
[WhiteElo "2334"]
[BlackElo "2532"]
[Round "9.23"]
[Result "0-1"]
[TimeControl "180+2"]

1. e4 {[%clk 00:03:03]} e5 {[%emt 00:00:02] [%clk 00:03:02]} 2. Nf3 {[%emt
00:00:01] [%clk 00:03:04]} Nc6 {[%clk 00:03:03]} 3. Bc4 {[%clk 00:03:06]} Nf6
{[%emt 00:00:01] [%clk 00:03:04]} 4. d3 {[%clk 00:03:07]} h6 {[%emt 00:00:01]
[%clk 00:03:05]} 5. O-O {[%emt 00:00:04] [%clk 00:03:04]} d6 {[%emt 00:00:02]
[%clk 00:03:05]} 6. c3 {[%emt 00:00:01] [%clk 00:03:06]} g6 {[%clk 00:03:06]} 7.
d4 {[%emt 00:00:01] [%clk 00:03:07]} Qe7 {[%emt 00:00:02] [%clk 00:03:06]} 8.
Re1 {[%clk 00:03:08]} Bg7 {[%clk 00:03:08]} 9. Nbd2 {[%emt 00:00:01] [%clk
00:03:09]} O-O {[%emt 00:00:03] [%clk 00:03:06]} 10. h3 {[%clk 00:03:10]} Kh7
{[%emt 00:00:14] [%clk 00:02:54]} 11. b4 {[%emt 00:00:01] [%clk 00:03:12]} exd4
{[%emt 00:00:07] [%clk 00:02:50]} 12. cxd4 {[%clk 00:03:13]} Nxb4 {[%emt
00:00:09] [%clk 00:02:43]} 13. e5 {[%clk 00:03:14]} dxe5 {[%emt 00:00:16] [%clk
00:02:29]} 14. dxe5 {[%emt 00:00:12] [%clk 00:03:05]} Nd7 {[%emt 00:00:10] [%clk
00:02:21]} 15. e6 {[%emt 00:00:21] [%clk 00:02:46]} Nb6 {[%emt 00:00:07] [%clk
00:02:16]} 16. exf7 {[%emt 00:00:05] [%clk 00:02:43]} Qc5 {[%emt 00:00:02] [%clk
00:02:15]} 17. Bb3 {[%emt 00:01:08] [%clk 00:01:37]} Bf5 {[%emt 00:00:02] [%clk
00:02:16]} 18. Ba3 {[%emt 00:00:11] [%clk 00:01:28]} Qa5 {[%emt 00:01:15] [%clk
00:01:03]} 19. Bxb4 {[%emt 00:00:28] [%clk 00:01:02]} Qxb4 {[%emt 00:00:01]
[%clk 00:01:04]} 20. Rc1 {[%clk 00:01:03]} c6 {[%emt 00:00:02] [%clk 00:01:05]}
21. Nf1 {[%emt 00:00:44] [%clk 00:00:21]} Rad8 {[%emt 00:00:05] [%clk 00:01:02]}
22. Qe2 {[%emt 00:00:01] [%clk 00:00:22]} Nd5 {[%emt 00:00:06] [%clk 00:00:58]}
23. Ne5 {[%emt 00:00:07] [%clk 00:00:17]} Nf4 {[%emt 00:00:13] [%clk 00:00:46]}
24. Qf3 {[%emt 00:00:03] [%clk 00:00:16]} Bxe5 {[%emt 00:00:15] [%clk 00:00:34]}
25. Rxe5 {[%emt 00:00:05] [%clk 00:00:13]} Nd3 {[%clk 00:00:35]} 26. Rxf5 {[%emt
00:00:01] [%clk 00:00:13]} Nxc1 {[%emt 00:00:01] [%clk 00:00:36]} 27. Rf6 {[%emt
00:00:02] [%clk 00:00:14]} Nxb3 {[%emt 00:00:08] [%clk 00:00:30]} 28. axb3
{[%emt 00:00:02] [%clk 00:00:14]} Rd6 {[%emt 00:00:03] [%clk 00:00:29]} 29. Rf4
{[%emt 00:00:03] [%clk 00:00:14]} Qe1 {[%emt 00:00:02] [%clk 00:00:28]} 30. Qe3
{[%emt 00:00:09] [%clk 00:00:07]} Qxe3 {[%emt 00:00:03] [%clk 00:00:27]} 31.
Nxe3 {[%clk 00:00:08]} Rd7 {[%emt 00:00:03] [%clk 00:00:27]} 32. Ra4 {[%emt
00:00:01] [%clk 00:00:09]} a6 {[%emt 00:00:02] [%clk 00:00:27]} 33. Ng4 {[%emt
00:00:03] [%clk 00:00:08]} Rdxf7 {[%emt 00:00:01] [%clk 00:00:28]} 34. f3 {[%emt
00:00:02] [%clk 00:00:08]} Re7 {[%emt 00:00:01] [%clk 00:00:28]} 35. Kf2 {[%clk
00:00:09]} Rd8 {[%emt 00:00:02] [%clk 00:00:29]} 36. h4 {[%emt 00:00:01] [%clk
00:00:09]} Kg7 {[%emt 00:00:03] [%clk 00:00:28]} 37. Kg3 {[%emt 00:00:02] [%clk
00:00:10]} Rd2 {[%emt 00:00:05] [%clk 00:00:25]} 38. Kh3 {[%emt 00:00:04] [%clk
00:00:08]} h5 {[%emt 00:00:03] [%clk 00:00:24]} 39. Nh2 {[%emt 00:00:01] [%clk
00:00:08]} Rb2 {[%emt 00:00:05] [%clk 00:00:21]} 40. Rb4 {[%emt 00:00:01] [%clk
00:00:10]} b5 {[%emt 00:00:01] [%clk 00:00:22]} 41. Nf1 {[%emt 00:00:02] [%clk
00:00:10]} a5 {[%emt 00:00:02] [%clk 00:00:22]} 0-1

[Site "Europe Echecs"]

[Event "Championnat d'Europe de Blitz"]
[Date "2024.12.09"]
[White "Dardha, Daniel"]
[Black "Mohr, Georg"]
[WhiteElo "2639"]
[BlackElo "2385"]
[Round "9.24"]
[Result "1-0"]
[TimeControl "180+2"]

1. d4 {[%emt 00:00:02] [%clk 00:03:02]} Nf6 {[%emt 00:00:01] [%clk 00:03:03]} 2.
Bg5 {[%emt 00:00:02] [%clk 00:03:02]} e6 {[%emt 00:00:05] [%clk 00:03:00]} 3. e4
{[%emt 00:00:01] [%clk 00:03:03]} h6 {[%emt 00:00:01] [%clk 00:03:00]} 4. Bxf6
{[%emt 00:00:03] [%clk 00:03:03]} Qxf6 {[%clk 00:03:01]} 5. e5 {[%emt 00:00:01]
[%clk 00:03:04]} Qd8 {[%emt 00:00:01] [%clk 00:03:02]} 6. Qg4 {[%emt 00:00:02]
[%clk 00:03:05]} d6 {[%emt 00:00:04] [%clk 00:02:59]} 7. Nc3 {[%emt 00:00:03]
[%clk 00:03:04]} Nd7 {[%emt 00:00:14] [%clk 00:02:47]} 8. Nf3 {[%emt 00:00:02]
[%clk 00:03:04]} g6 {[%emt 00:00:05] [%clk 00:02:44]} 9. h4 {[%emt 00:00:12]
[%clk 00:02:55]} h5 {[%clk 00:02:45]} 10. Qf4 {[%emt 00:00:10] [%clk 00:02:48]}
d5 {[%emt 00:00:35]} 11. Ng5 {[%clk 00:02:35]} Qe7 {[%clk 00:02:28]} 12. O-O-O
{[%emt 00:00:03] [%clk 00:02:34]} a6 {[%emt 00:00:01] [%clk 00:02:29]} 13. Bd3
{[%emt 00:00:08] [%clk 00:02:27]} c5 {[%emt 00:00:07] [%clk 00:02:24]} 14. Rde1
{[%emt 00:00:06] [%clk 00:02:24]} cxd4 {[%emt 00:00:14] [%clk 00:02:11]} 15.
Nxd5 {[%emt 00:00:07] [%clk 00:02:19]} Nb8 {[%emt 00:01:38]} 1-0

[Site "Europe Echecs"]